[Event "TUR-ch Veterans 2019"]
[Site "Belek"]
[Date "2019.01.22"]
[Round "3.11"]
[White "Tozaki, Halil"]
[Black "Ipek, Suat Sukru"]
[Result "1-0"]
[ECO "E61"]
[WhiteElo "1930"]
[BlackElo "1592"]
[Annotator "NA"]
[PlyCount "143"]
[EventDate "2019.01.20"]
[EventType "swiss"]
[EventCountry "TUR"]
[SourceTitle "playchess.com"]
[Source "ChessBase"]
[SourceQuality "1"]
[TimeControl "5400+30"]

1. d4 {[%emt 0:00:30]} Nf6 {[%emt 0:00:30]} 2. Nf3 {[%emt 0:00:00]} g6 {[%emt 0:00:30]} 3. c4 {[%emt 0:00:00]} Bg7 {[%emt 0:00:00]} 4. Nc3 {[%emt 0:00:00]} O-O {[%emt 0:00:00]} 5. Bf4 {[%emt 0:00:00]} d6 {[%emt 0:00:30]} 6. e3 {[%emt 0:00:30]} Nbd7 {[%emt 0:01:30]} 7. h3 {[%emt 0:00:30]} c5 {[%emt 0:00:30]} 8. Be2 {[%emt 0:01:30]} b6 {[%emt 0:08:30]} 9. d5 {[%emt 0:00:30]} Nh5 {[%emt 0:00:30]} 10. Bh2 {[%emt 0:00:30]} f5 {[%emt 0:00:30]} 11. Ng5 {[%emt 0:04:30]} Bxc3+ {[%emt 0:01:30]} 12. bxc3 {[%emt 0:01:30]} Ng7 {[%emt 0:00:30]} 13. h4 {[%emt 0:08:30]} h6 {[%emt 0:02:30]} 14. Nf3 {[%emt 0:02:30]} Nf6 {[%emt 0:00:30]} 15. Bf4 {[%emt 0:04:30]} Ng4 {[%emt 0:02:30]} 16. Nd2 {[%emt 0:01:30]} e5 {[%emt 0:03:30]} 17. dxe6 {[%emt 0:04:30]} Nxe6 {[%emt 0:00:30]} 18. Bf3 {[%emt 0:03:30]} Nxf4 {[%emt 0:00:30]} 19. exf4 {[%emt 0:00:30]} Re8+ {[%emt 0:03:30]} 20. Kf1 {[%emt 0:01:30]} Rb8 {[%emt 0:00:30]} 21. Bd5+ {[%emt 0:02:30]} Be6 {[%emt 0:01:30]} 22. Nf3 {[%emt 0:00:00]} Qf6 {[%emt 0:01:30]} 23. Qd2 {[%emt 0:01:00]} Re7 {[%emt 0:01:30]} 24. g3 {[%emt 0:02:30]} Rbe8 {[%emt 0:00:30]} 25. Re1 {[%emt 0:01:30]} Kf8 {[%emt 0:02:30]} 26. Kg2 {[%emt 0:03:30]} Qf7 {[%emt 0:04:30]} 27. Rxe6 {[%emt 0:03:30]} Rxe6 {[%emt 0:01:30]} 28. Re1 {[%emt 0:02:30]} Qf6 {[%emt 0:02:30]} 29. Rxe6 {[%emt 0:04:30]} Rxe6 {[%emt 0:00:30]} 30. Bxe6 {[%emt 0:00:30]} Qxe6 {[%emt 0:00:00]} 31. Qd5 {[%emt 0:02:30]} Ke7 {[%emt 0:06:00]} 32. Qb7+ {[%emt 0:05:30]} Qd7 {[%emt 0:00:30]} 33. Qb8 {[%emt 0:02:30]} Qa4 {[%emt 0:12:30]} 34. Qc7+ {[%emt 0:04:30]} Qd7 {[%emt 0:00:30]} 35. Qb8 {[%emt 0:02:30]} Kf7 {[%emt 0:03:30]} 36. Qh8 {[%emt 0:03:30]} Qe8 {[%emt 0:06:30]} 37. Qh7+ {[%emt 0:01:30]} Kf6 {[%emt 0:00:30]} 38. Qc7 {[%emt 0:03:30]} Qe7 {[%emt 0:00:00]} 39. Qc6 {[%emt 0:04:30]} Kg7 {[%emt 0:00:00]} 40. Qd5 {[%emt 0:01:11]} Nf6 {[%emt 0:00:30]} 41. Qd3 {[%emt 0:01:06]} Ne4 {[%emt 0:00:30]} 42. Nd2 {[%emt 0:03:31]} Nf6 {[%emt 0:02:30]} 43. f3 {[%emt 0:01:24]} Qe6 {[%emt 0:03:30]} 44. Kf2 {[%emt 0:01:28]} Kf7 {[%emt 0:00:30]} 45. Nf1 {[%emt 0:00:29]} d5 {[%emt 0:00:30]} 46. Ne3 {[%emt 0:00:49]} dxc4 {[%emt 0:01:30]} 47. Nxc4 {[%emt 0:00:30]} Kg7 {[%emt 0:01:30]} 48. Qe2 {[%emt 0:01:45]} Qxe2+ {[%emt 0:06:30]} 49. Kxe2 {[%emt 0:00:02]} Nd5 {[%emt 0:00:30]} 50. Kd3 {[%emt 0:00:45]} Kf6 {[%emt 0:01:30]} 51. Nd6 {[%emt 0:00:37]} a6 {[%emt 0:06:40]} 52. a3 {[%emt 0:00:49]} b5 {[%emt 0:00:39]} 53. c4 {[%emt 0:00:47]} Nc7 {[%emt 0:00:21]} 54. Nb7 {[%emt 0:00:52]} Ne6 {[%emt 0:01:03]} 55. Na5 {[%emt 0:01:11]} Ke7 {[%emt 0:02:44]} 56. Nc6+ {[%emt 0:00:15]} Kd6 {[%emt 0:01:08]} 57. Ne5 {[%emt 0:00:18]} Nf8 {[%emt 0:00:44]} 58. Nf7+ {[%emt 0:00:59]} Kc6 {[%emt 0:00:12]} 59. Nxh6 {[%emt 0:00:10]} b4 {[%emt 0:00:07]} 60. Kc2 {[%emt 0:00:33]} Ne6 {[%emt 0:00:59]} 61. Nf7 {[%emt 0:00:36]} Nd4+ {[%emt 0:00:10]} 62. Kb2 {[%emt 0:00:19]} Ne6 {[%emt 0:02:20]} 63. Ne5+ {[%emt 0:00:20]} Kd6 {[%emt 0:00:45]} 64. Nxg6 {[%emt 0:00:07]} Ng7 {[%emt 0:00:00]} 65. Kb3 {[%emt 0:00:23]} a5 {[%emt 0:00:00]} 66. a4 {[%emt 0:00:06]} Ke6 {[%emt 0:00:20]} 67. Ne5 {[%emt 0:00:11]} Kd6 {[%emt 0:01:42]} 68. g4 {[%emt 0:00:21]} fxg4 {[%emt 0:00:21]} 69. fxg4 {[%emt 0:00:10]} Ne6 {[%emt 0:00:04]} 70. Nd3 {[%emt 0:00:45]} Nd4+ {[%emt 0:02:15]} 71. Kb2 {[%emt 0:00:15]} Nf3 {[%emt 0:01:03]} 72. h5 {[%emt 0:01:07]} 1-0

[Event "TUR-ch Veterans 2019"]
[Site "Belek"]
[Date "2019.01.22"]
[Round "3.13"]
[White "Topaloglu, Hayati"]
[Black "Yuksel, Mustafa"]
[Result "0-1"]
[ECO "C12"]
[WhiteElo "1740"]
[BlackElo "2031"]
[Annotator "NA"]
[PlyCount "60"]
[EventDate "2019.01.20"]
[EventType "swiss"]
[EventCountry "TUR"]
[SourceTitle "playchess.com"]
[Source "ChessBase"]
[SourceQuality "1"]
[TimeControl "5400+30"]

1. e4 {[%emt 0:00:30]} e6 {[%emt 0:00:30]} 2. d4 {[%emt 0:00:30]} d5 {[%emt 0:00:00]} 3. Nc3 {[%emt 0:00:00]} Nf6 {[%emt 0:00:00]} 4. Bg5 {[%emt 0:00:00]} Bb4 {[%emt 0:00:00]} 5. e5 {[%emt 0:01:30]} h6 {[%emt 0:00:00]} 6. exf6 {[%emt 0:04:30]} hxg5 {[%emt 0:00:30]} 7. fxg7 {[%emt 0:01:30]} Rg8 {[%emt 0:00:00]} 8. Qh5 {[%emt 0:00:30]} Qf6 {[%emt 0:00:00]} 9. Nf3 {[%emt 0:03:30]} Qxg7 {[%emt 0:00:30]} 10. O-O-O {[%emt 0:02:30]} Bd7 {[%emt 0:06:30]} 11. h4 {[%emt 0:01:30]} g4 {[%emt 0:01:30]} 12. Ng5 {[%emt 0:01:30]} Nc6 {[%emt 0:02:30]} 13. Qxg4 {[%emt 0:02:30]} O-O-O {[%emt 0:01:30]} 14. Qf4 {[%emt 0:03:30]} f6 {[%emt 0:00:30]} 15. Nf3 {[%emt 0:00:30]} e5 {[%emt 0:00:30]} 16. dxe5 {[%emt 0:03:30]} fxe5 {[%emt 0:00:30]} 17. Qh2 {[%emt 0:04:30]} e4 {[%emt 0:00:30]} 18. Nxd5 {[%emt 0:05:30]} Bd6 {[%emt 0:00:30]} 19. g3 {[%emt 0:01:30]} exf3 {[%emt 0:00:30]} 20. h5 {[%emt 0:06:30]} Be5 {[%emt 0:00:00]} 21. c3 {[%emt 0:01:30]} Be6 {[%emt 0:01:00]} 22. Bh3 {[%emt 0:00:30]} Qf7 {[%emt 0:00:30]} 23. Rhe1 {[%emt 0:01:30]} Kb8 {[%emt 0:00:30]} 24. Bxe6 {[%emt 0:03:30]} Qxe6 {[%emt 0:00:30]} 25. c4 {[%emt 0:00:30]} Qf5 {[%emt 0:02:30]} 26. Qh4 {[%emt 0:01:30]} Rde8 {[%emt 0:01:30]} 27. Ne3 {[%emt 0:02:30]} Qh7 {[%emt 0:06:30]} 28. Nd5 {[%emt 0:04:30]} Qh8 {[%emt 0:01:30]} 29. Kb1 {[%emt 0:03:30]} Nd4 {[%emt 0:10:30]} 30. Re3 {[%emt 0:01:30]} Nf5 {[%emt 0:01:30]} 0-1

[Event "TUR-ch Veterans 2019"]
[Site "Belek"]
[Date "2019.01.22"]
[Round "3.14"]
[White "Cicek, Cemil"]
[Black "Bapoglu, Ibrahim"]
[Result "1/2-1/2"]
[ECO "E34"]
[WhiteElo "1999"]
[BlackElo "1549"]
[Annotator "NA"]
[PlyCount "111"]
[EventDate "2019.01.20"]
[EventType "swiss"]
[EventCountry "TUR"]
[SourceTitle "playchess.com"]
[Source "ChessBase"]
[SourceQuality "1"]
[TimeControl "5400+30"]

1. d4 {[%emt 0:00:30]} Nf6 {[%emt 0:00:30]} 2. c4 {[%emt 0:00:00]} e6 {[%emt 0:00:30]} 3. Nc3 {[%emt 0:00:00]} d5 {[%emt 0:00:30]} 4. Nf3 {[%emt 0:00:30]} Bb4 {[%emt 0:00:30]} 5. Qc2 {[%emt 0:01:30]} c5 {[%emt 0:01:30]} 6. cxd5 {[%emt 0:01:30]} Qxd5 {[%emt 0:01:30]} 7. Bd2 {[%emt 0:01:30]} Bxc3 {[%emt 0:01:30]} 8. bxc3 {[%emt 0:01:30]} cxd4 {[%emt 0:03:30]} 9. cxd4 {[%emt 0:00:30]} O-O {[%emt 0:01:30]} 10. e3 {[%emt 0:00:30]} b6 {[%emt 0:00:30]} 11. Bd3 {[%emt 0:00:30]} Ba6 {[%emt 0:00:30]} 12. Bxa6 {[%emt 0:00:30]} Nxa6 {[%emt 0:00:00]} 13. O-O {[%emt 0:00:30]} Rfc8 {[%emt 0:01:00]} 14. Qb2 {[%emt 0:00:30]} Ne4 {[%emt 0:00:30]} 15. Rfc1 {[%emt 0:01:30]} Nc7 {[%emt 0:03:30]} 16. Be1 {[%emt 0:01:30]} Ne8 {[%emt 0:01:30]} 17. Ne5 {[%emt 0:00:30]} f6 {[%emt 0:03:30]} 18. Nd3 {[%emt 0:02:30]} g5 {[%emt 0:07:30]} 19. f3 {[%emt 0:00:30]} N4d6 {[%emt 0:00:30]} 20. Nb4 {[%emt 0:02:30]} Qb5 {[%emt 0:03:30]} 21. a4 {[%emt 0:01:30]} Qd7 {[%emt 0:00:30]} 22. Qb3 {[%emt 0:01:30]} Kg7 {[%emt 0:05:30]} 23. h4 {[%emt 0:01:30]} h6 {[%emt 0:00:30]} 24. hxg5 {[%emt 0:01:30]} hxg5 {[%emt 0:00:30]} 25. e4 {[%emt 0:00:30]} Nf7 {[%emt 0:01:30]} 26. Bf2 {[%emt 0:00:30]} Rxc1+ {[%emt 0:00:30]} 27. Rxc1 {[%emt 0:00:30]} Rc8 {[%emt 0:00:30]} 28. Rd1 {[%emt 0:00:30]} Ned6 {[%emt 0:02:30]} 29. d5 {[%emt 0:01:30]} e5 {[%emt 0:01:30]} 30. Nc2 {[%emt 0:03:30]} Qc7 {[%emt 0:00:30]} 31. Ne3 {[%emt 0:00:30]} Qc3 {[%emt 0:02:30]} 32. Qa2 {[%emt 0:01:30]} Kg6 {[%emt 0:00:30]} 33. Ra1 {[%emt 0:02:30]} Nc4 {[%emt 0:01:30]} 34. Nf5 {[%emt 0:00:30]} Rc7 {[%emt 0:04:30]} 35. Rd1 {[%emt 0:02:30]} Ncd6 {[%emt 0:01:30]} 36. Be1 {[%emt 0:02:30]} Qc5+ {[%emt 0:01:30]} 37. Kh2 {[%emt 0:00:30]} Nxf5 {[%emt 0:03:30]} 38. exf5+ {[%emt 0:00:30]} Kg7 {[%emt 0:00:30]} 39. a5 {[%emt 0:03:30]} Nd6 {[%emt 0:00:30]} 40. axb6 {[%emt 0:00:30]} axb6 {[%emt 0:04:30]} 41. Bf2 {[%emt 0:02:30]} Qa5 {[%emt 0:01:30]} 42. Qxa5 {[%emt 0:01:30]} bxa5 {[%emt 0:00:00]} 43. Bb6 {[%emt 0:00:00]} Rd7 {[%emt 0:00:00]} 44. Bxa5 {[%emt 0:02:00]} Nxf5 {[%emt 0:00:30]} 45. Bb6 {[%emt 0:00:30]} Kf7 {[%emt 0:01:30]} 46. Rd2 {[%emt 0:00:30]} Ne7 {[%emt 0:00:30]} 47. d6 {[%emt 0:01:30]} Nf5 {[%emt 0:00:00]} 48. Bc5 {[%emt 0:00:30]} Ke6 {[%emt 0:01:00]} 49. Ra2 {[%emt 0:00:30]} Nxd6 {[%emt 0:00:30]} 50. Ra6 {[%emt 0:00:30]} Kd5 {[%emt 0:00:30]} 51. Ba3 {[%emt 0:01:30]} f5 {[%emt 0:00:30]} 52. Kg3 {[%emt 0:00:30]} e4 {[%emt 0:01:30]} 53. Ra5+ {[%emt 0:02:30]} Ke6 {[%emt 0:00:00]} 54. Bxd6 {[%emt 0:00:30]} Rxd6 {[%emt 0:01:00]} 55. fxe4 {[%emt 0:00:30]} Rd3+ {[%emt 0:01:30]} 56. Kf2 {[%emt 0:00:30]} 1/2-1/2

[Event "TUR-ch Veterans 2019"]
[Site "Belek"]
[Date "2019.01.22"]
[Round "3.15"]
[White "Buyukgokcesu, Tahir Sami"]
[Black "Muratoglu, Salih"]
[Result "0-1"]
[ECO "B06"]
[WhiteElo "1557"]
[BlackElo "1950"]
[Annotator "NA"]
[PlyCount "92"]
[EventDate "2019.01.20"]
[EventType "swiss"]
[EventCountry "TUR"]
[SourceTitle "playchess.com"]
[Source "ChessBase"]
[SourceQuality "1"]
[TimeControl "5400+30"]

1. e4 {[%emt 0:00:30]} d6 {[%emt 0:00:30]} 2. d4 {[%emt 0:00:30]} Nc6 {[%emt 0:00:30]} 3. Nf3 {[%emt 0:01:30]} g6 {[%emt 0:00:30]} 4. Be2 {[%emt 0:02:30]} Bg7 {[%emt 0:00:30]} 5. Be3 {[%emt 0:00:30]} Nf6 {[%emt 0:00:30]} 6. Nbd2 {[%emt 0:00:30]} O-O {[%emt 0:01:30]} 7. h3 {[%emt 0:00:30]} e5 {[%emt 0:00:30]} 8. c3 {[%emt 0:03:30]} Qe7 {[%emt 0:00:30]} 9. d5 {[%emt 0:01:30]} Nd8 {[%emt 0:01:30]} 10. Nh2 {[%emt 0:04:30]} c6 {[%emt 0:01:30]} 11. c4 {[%emt 0:02:30]} Nd7 {[%emt 0:02:30]} 12. g4 {[%emt 0:07:30]} a6 {[%emt 0:03:30]} 13. Qc2 {[%emt 0:05:30]} Nf6 {[%emt 0:02:30]} 14. Qd3 {[%emt 0:14:30]} Bd7 {[%emt 0:00:30]} 15. Rc1 {[%emt 0:02:30]} b5 {[%emt 0:01:30]} 16. cxb5 {[%emt 0:02:30]} axb5 {[%emt 0:03:30]} 17. a3 {[%emt 0:00:30]} cxd5 {[%emt 0:01:30]} 18. exd5 {[%emt 0:00:30]} e4 {[%emt 0:01:30]} 19. Qb3 {[%emt 0:00:30]} Qe5 {[%emt 0:00:30]} 20. Bxb5 {[%emt 0:04:30]} Rb8 {[%emt 0:02:30]} 21. a4 {[%emt 0:01:30]} Bxb5 {[%emt 0:03:30]} 22. axb5 {[%emt 0:00:00]} Qxd5 {[%emt 0:00:30]} 23. Qxd5 {[%emt 0:02:00]} Nxd5 {[%emt 0:00:00]} 24. Nxe4 {[%emt 0:01:30]} Bxb2 {[%emt 0:03:00]} 25. Rd1 {[%emt 0:02:30]} Nxe3 {[%emt 0:00:30]} 26. fxe3 {[%emt 0:00:30]} Re8 {[%emt 0:00:30]} 27. Nxd6 {[%emt 0:03:30]} Rxe3+ {[%emt 0:01:30]} 28. Kf2 {[%emt 0:00:30]} Rxh3 {[%emt 0:00:00]} 29. Kg2 {[%emt 0:03:30]} Rb3 {[%emt 0:02:00]} 30. Nf3 {[%emt 0:00:30]} Ne6 {[%emt 0:00:30]} 31. Rhf1 {[%emt 0:02:30]} Nf4+ {[%emt 0:03:30]} 32. Kh2 {[%emt 0:03:30]} f6 {[%emt 0:05:30]} 33. b6 {[%emt 0:09:22]} R3xb6 {[%emt 0:01:30]} 34. Nc4 {[%emt 0:00:01]} Rc6 {[%emt 0:00:30]} 35. Nxb2 {[%emt 0:01:48]} Rxb2+ {[%emt 0:00:30]} 36. Rd2 {[%emt 0:01:05]} Rxd2+ {[%emt 0:01:30]} 37. Nxd2 {[%emt 0:00:02]} Rc2 {[%emt 0:00:30]} 38. Rf2 {[%emt 0:00:51]} Nd3 {[%emt 0:00:30]} 39. Re2 {[%emt 0:01:18]} Kf7 {[%emt 0:00:30]} 40. Kg3 {[%emt 0:00:39]} Ne5 {[%emt 0:00:30]} 41. Rh2 {[%emt 0:00:42]} Kg7 {[%emt 0:01:30]} 42. Rg2 {[%emt 0:03:50]} Rc3+ {[%emt 0:01:30]} 43. Kh2 {[%emt 0:00:55]} Rd3 {[%emt 0:01:30]} 44. Nf1 {[%emt 0:02:16]} Nf3+ {[%emt 0:00:30]} 45. Kh1 {[%emt 0:00:11]} Rd1 {[%emt 0:01:30]} 46. Rf2 {[%emt 0:00:30]} Ne5 {[%emt 0:00:00]} 0-1

[Event "TUR-ch Veterans 2019"]
[Site "Belek"]
[Date "2019.01.22"]
[Round "3.16"]
[White "Bagci, Hikmet"]
[Black "Altin, Halis"]
[Result "1-0"]
[ECO "C97"]
[WhiteElo "1548"]
[BlackElo "1642"]
[Annotator "NA"]
[PlyCount "65"]
[EventDate "2019.01.20"]
[EventType "swiss"]
[EventCountry "TUR"]
[SourceTitle "playchess.com"]
[Source "ChessBase"]
[SourceQuality "1"]
[TimeControl "5400+30"]

1. e4 {[%emt 0:00:30]} e5 {[%emt 0:00:30]} 2. Nf3 {[%emt 0:00:30]} Nc6 {[%emt 0:00:00]} 3. Bb5 {[%emt 0:00:00]} a6 {[%emt 0:00:00]} 4. Ba4 {[%emt 0:00:00]} Nf6 {[%emt 0:00:00]} 5. O-O {[%emt 0:00:00]} Be7 {[%emt 0:01:00]} 6. Re1 {[%emt 0:00:00]} b5 {[%emt 0:00:30]} 7. Bb3 {[%emt 0:00:30]} d6 {[%emt 0:00:00]} 8. c3 {[%emt 0:00:00]} Na5 {[%emt 0:00:00]} 9. Bc2 {[%emt 0:00:00]} c5 {[%emt 0:00:30]} 10. d4 {[%emt 0:00:30]} Qc7 {[%emt 0:00:30]} 11. Nbd2 {[%emt 0:00:00]} O-O {[%emt 0:01:30]} 12. h3 {[%emt 0:01:00]} Re8 {[%emt 0:02:30]} 13. d5 {[%emt 0:01:30]} Nb7 {[%emt 0:01:30]} 14. Nf1 {[%emt 0:01:30]} c4 {[%emt 0:01:30]} 15. a4 {[%emt 0:01:30]} Bd7 {[%emt 0:00:30]} 16. Ng3 {[%emt 0:00:30]} g6 {[%emt 0:02:30]} 17. Be3 {[%emt 0:03:30]} Nc5 {[%emt 0:02:30]} 18. a5 {[%emt 0:01:30]} Bf8 {[%emt 0:04:30]} 19. Nd2 {[%emt 0:05:30]} Bg7 {[%emt 0:02:30]} 20. Qe2 {[%emt 0:03:30]} Re7 {[%emt 0:08:30]} 21. Rec1 {[%emt 0:08:30]} Rf8 {[%emt 0:06:30]} 22. b4 {[%emt 0:00:30]} cxb3 {[%emt 0:01:30]} 23. Bxb3 {[%emt 0:01:30]} Nxb3 {[%emt 0:03:30]} 24. Nxb3 {[%emt 0:00:30]} Rc8 {[%emt 0:00:30]} 25. Nd2 {[%emt 0:02:30]} Qb7 {[%emt 0:06:30]} 26. Qf3 {[%emt 0:02:30]} Be8 {[%emt 0:01:30]} 27. Bg5 {[%emt 0:00:30]} Nxd5 {[%emt 0:03:30]} 28. exd5 {[%emt 0:00:30]} Rec7 {[%emt 0:00:30]} 29. Nde4 {[%emt 0:06:30]} Kh8 {[%emt 0:15:30]} 30. Nxd6 {[%emt 0:00:30]} Qb8 {[%emt 0:03:30]} 31. Nxc8 {[%emt 0:00:30]} Qxc8 {[%emt 0:00:30]} 32. Bf6 {[%emt 0:01:30]} Rc4 {[%emt 0:00:30]} 33. Ne4 {[%emt 0:00:30]} 1-0

[Event "TUR-ch Veterans 2019"]
[Site "Belek"]
[Date "2019.01.22"]
[Round "3.17"]
[White "Odabasi, Nail"]
[Black "Tekeli, Savran"]
[Result "0-1"]
[ECO "D00"]
[WhiteElo "1525"]
[BlackElo "1478"]
[Annotator "NA"]
[PlyCount "98"]
[EventDate "2019.01.20"]
[EventType "swiss"]
[EventCountry "TUR"]
[SourceTitle "playchess.com"]
[Source "ChessBase"]
[SourceQuality "1"]
[TimeControl "5400+30"]

1. d4 {[%emt 0:00:30]} d5 {[%emt 0:00:30]} 2. Bf4 {[%emt 0:00:00]} Bf5 {[%emt 0:00:30]} 3. c4 {[%emt 0:00:00]} e6 {[%emt 0:00:30]} 4. cxd5 {[%emt 0:02:30]} exd5 {[%emt 0:00:30]} 5. Qb3 {[%emt 0:00:30]} b6 {[%emt 0:01:30]} 6. e3 {[%emt 0:00:30]} Nf6 {[%emt 0:01:30]} 7. Nc3 {[%emt 0:00:30]} Be7 {[%emt 0:02:30]} 8. Nf3 {[%emt 0:01:30]} O-O {[%emt 0:01:30]} 9. Be2 {[%emt 0:00:30]} a6 {[%emt 0:02:30]} 10. h3 {[%emt 0:00:30]} Nc6 {[%emt 0:00:30]} 11. O-O {[%emt 0:01:30]} Na5 {[%emt 0:00:30]} 12. Qd1 {[%emt 0:01:30]} c6 {[%emt 0:03:30]} 13. Ne5 {[%emt 0:04:30]} Bd6 {[%emt 0:02:30]} 14. Rc1 {[%emt 0:01:30]} Bxe5 {[%emt 0:01:30]} 15. Bxe5 {[%emt 0:02:30]} Nd7 {[%emt 0:01:30]} 16. Bh2 {[%emt 0:04:30]} b5 {[%emt 0:01:30]} 17. b3 {[%emt 0:01:30]} Rc8 {[%emt 0:01:30]} 18. Bd3 {[%emt 0:00:30]} Be6 {[%emt 0:01:30]} 19. f4 {[%emt 0:01:30]} f5 {[%emt 0:01:30]} 20. Kh1 {[%emt 0:12:30]} Nb7 {[%emt 0:00:30]} 21. b4 {[%emt 0:01:30]} Nd6 {[%emt 0:00:30]} 22. Qe2 {[%emt 0:04:30]} Ne4 {[%emt 0:02:30]} 23. Nd1 {[%emt 0:01:30]} Qh4 {[%emt 0:00:30]} 24. Qe1 {[%emt 0:01:30]} Qh5 {[%emt 0:02:30]} 25. Be2 {[%emt 0:00:30]} Qh6 {[%emt 0:00:30]} 26. Nf2 {[%emt 0:00:30]} Ndf6 {[%emt 0:01:30]} 27. Nd3 {[%emt 0:00:30]} Nd7 {[%emt 0:01:30]} 28. Bf3 {[%emt 0:02:30]} Kh8 {[%emt 0:01:30]} 29. Bxe4 {[%emt 0:02:30]} fxe4 {[%emt 0:00:30]} 30. Nc5 {[%emt 0:00:30]} Nxc5 {[%emt 0:00:30]} 31. Rxc5 {[%emt 0:00:30]} Bd7 {[%emt 0:02:30]} 32. Rg1 {[%emt 0:04:30]} Rce8 {[%emt 0:01:30]} 33. Qf1 {[%emt 0:01:30]} g5 {[%emt 0:01:30]} 34. g4 {[%emt 0:04:30]} Kg8 {[%emt 0:01:30]} 35. f5 {[%emt 0:00:30]} Qf6 {[%emt 0:06:30]} 36. Qa1 {[%emt 0:01:30]} h5 {[%emt 0:00:30]} 37. Be5 {[%emt 0:00:30]} Qh6 {[%emt 0:01:30]} 38. Bh2 {[%emt 0:01:30]} hxg4 {[%emt 0:01:30]} 39. hxg4 {[%emt 0:00:30]} Kf7 {[%emt 0:00:30]} 40. Rc2 {[%emt 0:01:30]} Rh8 {[%emt 0:00:30]} 41. Rg3 {[%emt 0:01:30]} Qg7 {[%emt 0:01:30]} 42. Qf1 {[%emt 0:00:30]} Rh4 {[%emt 0:00:30]} 43. Kg1 {[%emt 0:03:30]} Reh8 {[%emt 0:01:30]} 44. Rgg2 {[%emt 0:00:30]} Qh6 {[%emt 0:01:30]} 45. a3 {[%emt 0:02:30]} Rh3 {[%emt 0:01:30]} 46. Qf2 {[%emt 0:00:30]} Rf3 {[%emt 0:01:30]} 47. Qe1 {[%emt 0:01:30]} Qh3 {[%emt 0:03:30]} 48. Rg3 {[%emt 0:00:30]} Qh4 {[%emt 0:01:30]} 49. Rxf3 {[%emt 0:00:30]} Qxe1+ {[%emt 0:00:30]} 0-1

[Event "TUR-ch Veterans 2019"]
[Site "Belek"]
[Date "2019.01.22"]
[Round "3.18"]
[White "Cabi, Mehmet"]
[Black "Akinci, Ahmet"]
[Result "0-1"]
[ECO "C24"]
[WhiteElo "1194"]
[BlackElo "1402"]
[Annotator "NA"]
[PlyCount "74"]
[EventDate "2019.01.20"]
[EventType "swiss"]
[EventCountry "TUR"]
[SourceTitle "playchess.com"]
[Source "ChessBase"]
[SourceQuality "1"]
[TimeControl "5400+30"]

1. e4 {[%emt 0:00:30]} e5 {[%emt 0:01:30]} 2. Bc4 {[%emt 0:00:00]} Nf6 {[%emt 0:02:30]} 3. d3 {[%emt 0:00:00]} c6 {[%emt 0:01:30]} 4. Bg5 {[%emt 0:00:30]} Bc5 {[%emt 0:01:30]} 5. Nf3 {[%emt 0:01:30]} Qb6 {[%emt 0:00:30]} 6. O-O {[%emt 0:00:30]} Qxb2 {[%emt 0:00:30]} 7. Nbd2 {[%emt 0:00:30]} d6 {[%emt 0:03:30]} 8. h3 {[%emt 0:02:30]} Nbd7 {[%emt 0:01:30]} 9. Rb1 {[%emt 0:00:30]} Qc3 {[%emt 0:01:30]} 10. Nb3 {[%emt 0:00:30]} Qb4 {[%emt 0:00:30]} 11. Bd2 {[%emt 0:01:30]} Qa4 {[%emt 0:03:30]} 12. Ng5 {[%emt 0:00:30]} O-O {[%emt 0:03:30]} 13. Kh2 {[%emt 0:00:30]} Bb6 {[%emt 0:02:30]} 14. Na1 {[%emt 0:01:30]} d5 {[%emt 0:02:30]} 15. Rb4 {[%emt 0:04:30]} Qa3 {[%emt 0:00:30]} 16. Rb3 {[%emt 0:00:30]} Qd6 {[%emt 0:01:30]} 17. exd5 {[%emt 0:01:30]} cxd5 {[%emt 0:01:30]} 18. Bb5 {[%emt 0:01:30]} Nc5 {[%emt 0:00:30]} 19. Bb4 {[%emt 0:00:30]} h6 {[%emt 0:00:30]} 20. Nf3 {[%emt 0:03:30]} e4+ {[%emt 0:01:30]} 21. Kh1 {[%emt 0:00:30]} exf3 {[%emt 0:00:00]} 22. Qxf3 {[%emt 0:00:30]} a6 {[%emt 0:02:00]} 23. Ba4 {[%emt 0:00:30]} Bc7 {[%emt 0:01:30]} 24. g3 {[%emt 0:00:30]} b5 {[%emt 0:00:30]} 25. d4 {[%emt 0:00:30]} Qe6 {[%emt 0:02:30]} 26. Re3 {[%emt 0:01:30]} Qxh3+ {[%emt 0:00:30]} 27. Kg1 {[%emt 0:00:30]} Ng4 {[%emt 0:00:30]} 28. Qg2 {[%emt 0:00:30]} Qxg2+ {[%emt 0:00:30]} 29. Kxg2 {[%emt 0:00:30]} Nxe3+ {[%emt 0:00:30]} 30. fxe3 {[%emt 0:00:30]} Nxa4 {[%emt 0:01:30]} 31. Bxf8 {[%emt 0:01:30]} Kxf8 {[%emt 0:00:00]} 32. Nb3 {[%emt 0:00:00]} g6 {[%emt 0:02:00]} 33. Nd2 {[%emt 0:00:00]} Bf5 {[%emt 0:00:00]} 34. Nf3 {[%emt 0:00:30]} Be4 {[%emt 0:00:00]} 35. Kh2 {[%emt 0:00:30]} Bxf3 {[%emt 0:00:30]} 36. Rxf3 {[%emt 0:00:30]} Re8 {[%emt 0:00:30]} 37. Kh3 {[%emt 0:00:30]} Nc3 {[%emt 0:00:30]} 0-1

[Event "TUR-ch Veterans 2019"]
[Site "Belek"]
[Date "2019.01.22"]
[Round "3.19"]
[White "Alkan, Sukru"]
[Black "Cifci, Alaettin"]
[Result "1-0"]
[ECO "B00"]
[WhiteElo "1484"]
[BlackElo "1294"]
[Annotator "NA"]
[PlyCount "63"]
[EventDate "2019.01.20"]
[EventType "swiss"]
[EventCountry "TUR"]
[SourceTitle "playchess.com"]
[Source "ChessBase"]
[SourceQuality "1"]
[TimeControl "5400+30"]

1. d4 {[%emt 0:00:30]} e6 {[%emt 0:01:30]} 2. Nf3 {[%emt 0:00:00]} c5 {[%emt 0:00:30]} 3. c3 {[%emt 0:00:00]} b6 {[%emt 0:01:30]} 4. e4 {[%emt 0:00:00]} Bb7 {[%emt 0:02:30]} 5. Bd3 {[%emt 0:00:00]} Qc7 {[%emt 0:00:30]} 6. O-O {[%emt 0:00:30]} c4 {[%emt 0:00:30]} 7. Bc2 {[%emt 0:00:30]} Nf6 {[%emt 0:01:30]} 8. Qe2 {[%emt 0:00:00]} Be7 {[%emt 0:00:30]} 9. Re1 {[%emt 0:00:00]} b5 {[%emt 0:03:30]} 10. Bg5 {[%emt 0:03:30]} h6 {[%emt 0:00:30]} 11. Bh4 {[%emt 0:00:00]} d6 {[%emt 0:02:30]} 12. Nbd2 {[%emt 0:00:00]} Nbd7 {[%emt 0:04:30]} 13. a4 {[%emt 0:02:30]} a6 {[%emt 0:00:30]} 14. axb5 {[%emt 0:00:00]} axb5 {[%emt 0:00:30]} 15. Rxa8+ {[%emt 0:00:00]} Bxa8 {[%emt 0:00:30]} 16. Ra1 {[%emt 0:00:30]} O-O {[%emt 0:00:30]} 17. e5 {[%emt 0:00:30]} dxe5 {[%emt 0:02:30]} 18. dxe5 {[%emt 0:00:30]} Nd5 {[%emt 0:00:00]} 19. Bg3 {[%emt 0:05:30]} Nc5 {[%emt 0:01:00]} 20. Nd4 {[%emt 0:01:30]} Qb7 {[%emt 0:04:30]} 21. f3 {[%emt 0:03:30]} Bg5 {[%emt 0:01:30]} 22. Ne4 {[%emt 0:00:30]} Be3+ {[%emt 0:00:30]} 23. Kh1 {[%emt 0:00:00]} Qb6 {[%emt 0:07:30]} 24. Nd6 {[%emt 0:04:00]} Bxd4 {[%emt 0:00:30]} 25. cxd4 {[%emt 0:00:30]} Nb3 {[%emt 0:02:30]} 26. Qe4 {[%emt 0:03:30]} g6 {[%emt 0:03:30]} 27. Nxf7 {[%emt 0:03:30]} Ne7 {[%emt 0:03:30]} 28. Nxh6+ {[%emt 0:00:30]} Kg7 {[%emt 0:00:30]} 29. Rxa8 {[%emt 0:00:30]} Rxa8 {[%emt 0:01:30]} 30. Qxa8 {[%emt 0:00:00]} Kxh6 {[%emt 0:02:30]} 31. Qf8+ {[%emt 0:00:00]} Kh5 {[%emt 0:01:30]} 32. Qxe7 {[%emt 0:00:30]} 1-0